fUSD/lending_fUSD_20250823
["ID","MTS","AMOUNT","RATE_DAILY","PERIOD"]
[380994311,1755930689368,-893.46,0.0001452,2]
[380994312,1755930689377,-400.0,0.0001452,2]
[380994313,1755930689386,-400.0,0.0001452,2]
[380994314,1755930689396,-664.51,0.0001452,2]
[380994315,1755930689406,-400.0,0.0001452,2]
[380994316,1755930689415,-400.0,0.0001452,2]
[380994317,1755930689424,-610.58,0.0001452,2]
[380994318,1755930689434,-400.0,0.0001452,2]
[380994319,1755930689444,-975.83,0.0001452,2]
[380994320,1755930689454,-400.0,0.0001452,2]
[380994321,1755930689463,-520.12,0.0001452,2]
[380994322,1755930689473,-567.16,0.0001452,2]
[380994323,1755930689482,-437.71,0.0001452,2]
[380994324,1755930689491,-591.76,0.0001452,2]
[380994325,1755930689501,-629.55,0.0001452,2]
[380994326,1755930689510,-976.57,0.0001452,2]
[380994327,1755930689520,-400.0,0.0001452,2]
[380994328,1755930689529,-707.96,0.0001452,2]
[380994329,1755930689539,-400.0,0.0001452,2]
[380994330,1755930689549,-548.63,0.0001452,2]
[380994331,1755930689558,-696.63,0.0001452,2]
[380994332,1755930689568,-548.08,0.0001452,2]
[380994333,1755930689577,-421.64,0.0001452,2]
[380994334,1755930689587,-1327.74,0.0001452,2]
[380994335,1755930689596,-400.0,0.0001452,2]
[380994336,1755930689606,-408.25,0.0001452,2]
[380994337,1755930689615,-666.95,0.0001452,2]
[380994338,1755930689625,-400.0,0.0001452,2]
[380994339,1755930689634,-400.0,0.0001452,2]
[380994340,1755930689644,-400.0,0.0001452,2]
[380994341,1755930689653,-478.81,0.0001452,2]
[380994342,1755930689662,-400.0,0.0001452,2]
[380994343,1755930689672,-400.0,0.0001452,2]
[380994344,1755930689681,-475.87,0.0001452,2]
[380994345,1755930689691,-752.44,0.0001452,2]
[380994346,1755930689700,-553.32,0.0001452,2]
[380994347,1755930689710,-414.48,0.0001452,2]
[380994348,1755930689720,-598.85,0.0001452,2]
[380994349,1755930689729,-317.55,0.0001452,2]
[380994350,1755930689738,-400.0,0.0001452,2]
[380994351,1755930689748,-418.3,0.0001452,2]
[380994352,1755930689757,-400.0,0.0001452,2]
[380994353,1755930689766,-590.73,0.0001452,2]
[380994354,1755930689776,-558.79,0.0001452,2]
[380994355,1755930689785,-977.36,0.0001452,2]
[380994356,1755930689795,-400.0,0.0001452,2]
[380994357,1755930689804,-400.0,0.0001452,2]
[380994358,1755930689814,-400.0,0.0001452,2]
[380994359,1755930689823,-400.0,0.0001452,2]
[380994360,1755930689832,-400.0,0.0001452,2]
[380994361,1755930689842,-398.38045242,0.0001452,2]
[380994362,1755930689851,-400.0,0.0001452,2]
[380994363,1755930689861,-400.0,0.0001452,2]
[380994364,1755930689870,-1058.0,0.0001452,2]
[380994365,1755930689880,-595.73,0.0001452,2]
[380994366,1755930689889,-792.12,0.0001452,2]
[380994367,1755930689900,-490.78,0.0001452,2]
[380994368,1755930689910,-400.0,0.0001452,2]
[380994369,1755930689920,-400.0,0.0001452,2]
[380994370,1755930689930,-400.0,0.0001452,2]
[380994371,1755930689939,-400.0,0.0001452,2]
[380994372,1755930689949,-664.29,0.0001452,2]
[380994373,1755930689959,-400.0,0.0001452,2]
[380994374,1755930689968,-400.0,0.0001452,2]
[380994375,1755930689978,-603.04,0.0001452,2]
[380994376,1755930689987,-400.0,0.0001452,2]
[380994377,1755930689996,-894.08,0.0001452,2]
[380994378,1755930690006,-419.15,0.0001452,2]
[380994379,1755930690015,-400.0,0.0001452,2]
[380994380,1755930690024,-400.0,0.0001452,2]
[380994381,1755930690033,-538.29,0.0001452,2]
[380994382,1755930690042,-400.0,0.0001452,2]
[380994383,1755930690052,-400.0,0.0001452,2]
[380994384,1755930690061,-400.0,0.0001452,2]
[380994385,1755930690071,-855.49,0.0001452,2]
[380994386,1755930690080,-400.0,0.0001452,2]
[380994387,1755930690090,-423.93,0.0001452,2]
[380994388,1755930690099,-400.0,0.0001452,2]
[380994389,1755930690109,-633.58,0.0001452,2]
[380994390,1755930690118,-509.54,0.0001452,2]
[380994391,1755930690128,-400.0,0.0001452,2]
[380994392,1755930690138,-400.0,0.0001452,2]
[380994393,1755930690151,-3166.9,0.0001452,2]
[380994394,1755930690161,-400.0,0.0001452,2]
[380994395,1755930690172,-400.0,0.0001452,2]
[380994396,1755930690182,-532.83,0.0001452,2]
[380994397,1755930690191,-400.0,0.0001452,2]
[380994398,1755930690201,-462.81,0.0001452,2]
[380994399,1755930690211,-487.36,0.0001452,2]
[380994400,1755930690222,-712.9,0.0001452,2]
[380994401,1755930690232,-571.73,0.0001452,2]
[380994402,1755930690242,-761.19,0.0001452,2]
[380994403,1755930690251,-781.23,0.0001452,2]
[380994404,1755930690260,-990.26,0.0001452,2]
[380994405,1755930690270,-400.0,0.0001452,2]
[380994406,1755930690283,-400.0,0.0001452,2]
[380994407,1755930690295,-400.0,0.0001452,2]
[380994408,1755930690304,-713.0,0.0001452,2]
[380994409,1755930690314,-594.22,0.0001452,2]
[380994410,1755930690324,-400.0,0.0001452,2]
[380994411,1755930690334,-736.28,0.0001452,2]
[380994412,1755930690343,-400.0,0.0001452,2]
[380994413,1755930690359,-715.03,0.0001452,2]
[380994414,1755930690368,-441.42,0.0001452,2]
[380994415,1755930690378,-400.0,0.0001452,2]
[380994416,1755930690387,-931.43,0.0001452,2]
[380994417,1755930690397,-942.63,0.0001452,2]
[380994418,1755930690406,-363.31360158,0.0001452,2]
[380994419,1755930690416,-602.5,0.0001452,2]
[380994420,1755930690427,-649.04,0.0001452,2]
[380994421,1755930690436,-400.0,0.0001452,2]
[380994422,1755930690446,-553.23,0.0001452,2]
[380994423,1755930690456,-400.0,0.0001452,2]
[380994424,1755930690465,-720.71,0.0001452,2]
[380994425,1755930690475,-419.63,0.0001452,2]
[380994426,1755930690484,-624.59,0.0001452,2]
[380994427,1755930690494,-797.24,0.0001452,2]
[380994428,1755930690504,-400.0,0.0001452,2]
[380994429,1755930690513,-400.0,0.0001452,2]
[380994430,1755930690523,-400.0,0.0001452,2]
[380994431,1755930690532,-587.49,0.0001452,2]
[380994432,1755930690542,-2151.45,0.0001452,2]
[380994433,1755930690551,-400.0,0.0001452,2]
[380994434,1755930690561,-400.0,0.0001452,2]
[380994435,1755930690586,-400.0,0.0001452,2]
[380994436,1755930690603,-690.44,0.0001452,2]
[380994437,1755930690624,-692.13,0.0001452,2]
[380994438,1755930690644,-697.05,0.0001452,2]
[380994439,1755930690661,-731.85,0.0001452,2]
[380994440,1755930690680,-400.0,0.0001452,2]
[380994441,1755930690699,-400.0,0.0001452,2]
[380994442,1755930690719,-874.21,0.0001452,2]
[380994443,1755930690738,-542.89,0.0001452,2]
[380994444,1755930690757,-513.06,0.0001452,2]
[380994445,1755930690773,-460.59,0.0001452,2]
[380994446,1755930690791,-416.02,0.0001452,2]
[380994447,1755930690804,-400.68735311,0.0001452,2]
[380994448,1755930690822,-400.0,0.0001452,2]
[380994449,1755930690837,-764.63,0.0001452,2]
[380994450,1755930690854,-512.62,0.0001452,2]
[380994451,1755930690870,-400.0,0.0001452,2]
[380994452,1755930690887,-436.53,0.0001452,2]
[380994453,1755930690903,-400.0,0.0001452,2]
[380994454,1755930690921,-692.03,0.0001452,2]
[380994455,1755930690937,-418.83,0.0001452,2]
[380994456,1755930690953,-400.0,0.0001452,2]
[380994457,1755930690969,-1343.83,0.0001452,2]
[380994458,1755930690985,-400.0,0.0001452,2]
[380994459,1755930691001,-617.12,0.0001452,2]
[380994460,1755930691017,-400.0,0.0001452,2]
[380994461,1755930691033,-400.0,0.0001452,2]
[380994462,1755930691049,-764.95,0.0001452,2]
[380994463,1755930691065,-400.0,0.0001452,2]
[380994464,1755930691080,-704.81,0.0001452,2]
[380994465,1755930691096,-400.0,0.0001452,2]
[380994466,1755930691111,-657.79,0.0001452,2]
[380994467,1755930691128,-1027.02,0.0001452,2]
[380994468,1755930691143,-677.4,0.0001452,2]
[380994469,1755930691159,-285.98598191,0.0001452,2]
[380994470,1755930691174,-400.0,0.0001452,2]
[380994471,1755930691189,-400.0,0.0001452,2]
[380994472,1755930691203,-400.0,0.0001452,2]
[380994473,1755930691219,-400.0,0.0001452,2]
[380994474,1755930691235,-400.0,0.0001452,2]
[380994475,1755930691251,-400.0,0.0001452,2]
[380994476,1755930691266,-817.2,0.0001452,2]
[380994477,1755930691283,-400.0,0.0001452,2]
[380994478,1755930691299,-1019.45,0.0001452,2]
[380994479,1755930691316,-500.32,0.0001452,2]
[380994480,1755930691333,-400.0,0.0001452,2]
[380994481,1755930691349,-400.0,0.0001452,2]
[380994482,1755930691367,-554.8,0.0001452,2]
[380994483,1755930691384,-632.54,0.0001452,2]
[380994484,1755930691399,-624.73,0.0001452,2]
[380994485,1755930691416,-739.16,0.0001452,2]
[380994486,1755930691432,-583.62,0.0001452,2]
[380994487,1755930691447,-853.25,0.0001452,2]
[380994488,1755930691463,-308.64512692,0.0001452,2]
[380994489,1755930691477,-400.0,0.0001452,2]
[380994490,1755930691495,-12873.11,0.0001452,2]
[380994491,1755930691511,-400.99360054,0.0001452,2]
[380994492,1755930691527,-990.21,0.0001452,2]
[380994493,1755930691543,-400.0,0.0001452,2]
[380994494,1755930691559,-400.0,0.0001452,2]
[380994495,1755930691575,-400.0,0.0001452,2]
[380994496,1755930691592,-400.0,0.0001452,2]
[380994497,1755930691609,-588.98,0.0001452,2]
[380994498,1755930691625,-897.81,0.0001452,2]
[380994499,1755930691642,-799.46,0.0001452,2]
[380994500,1755930691661,-646.95,0.0001452,2]
[380994501,1755930691687,-418.63,0.0001452,2]
[380994502,1755930691702,-987.03,0.0001452,2]
[380994503,1755930691719,-435.65,0.0001452,2]
[380994504,1755930691735,-453.72,0.0001452,2]
[380994505,1755930691751,-558.93,0.0001452,2]
[380994506,1755930691769,-421.41,0.0001452,2]
[380994507,1755930691785,-519.5946209,0.0001452,2]
[380994508,1755930691802,-400.0,0.0001452,2]
[380994509,1755930691819,-801.09,0.0001452,2]
[380994510,1755930691835,-400.0,0.0001452,2]
[380994511,1755930691851,-940.82,0.0001452,2]
[380994512,1755930691867,-738.24,0.0001452,2]
[380994513,1755930691883,-1045.55,0.0001452,2]
[380994514,1755930691899,-400.0,0.0001452,2]
[380994515,1755930691917,-400.0,0.0001452,2]
[380994516,1755930691933,-1129.74,0.0001452,2]
[380994517,1755930691948,-941.53,0.0001452,2]
[380994518,1755930691965,-1172.0,0.0001452,2]
[380994519,1755930691980,-400.0,0.0001452,2]
[380994520,1755930691996,-1384.75,0.0001452,2]
[380994521,1755930692011,-400.0,0.0001452,2]
[380994522,1755930692028,-740.0,0.0001452,2]
[380994523,1755930692044,-419.05,0.0001452,2]
[380994524,1755930692059,-831.91,0.0001452,2]
[380994525,1755930692074,-400.0,0.0001452,2]
[380994526,1755930692089,-778.45,0.0001452,2]
[380994527,1755930692104,-400.0,0.0001452,2]
[380994528,1755930692120,-1047.67,0.0001452,2]
[380994529,1755930692135,-400.0,0.0001452,2]
[380994530,1755930692152,-407.06,0.0001452,2]
[380994531,1755930692171,-400.0,0.0001452,2]
[380994532,1755930692187,-640.87,0.0001452,2]
[380994533,1755930692202,-400.0,0.0001452,2]
[380994534,1755930692217,-406.8,0.0001452,2]
[380994535,1755930692234,-620.0,0.0001452,2]
[380994536,1755930692249,-400.0,0.0001452,2]
[380994537,1755930692265,-566.33,0.0001452,2]
[380994538,1755930692283,-400.0,0.0001452,2]
[380994539,1755930692298,-428.51,0.0001452,2]
[380994540,1755930692314,-1110.17,0.0001452,2]
[380994541,1755930692330,-400.0,0.0001452,2]
[380994542,1755930692347,-643.19,0.0001452,2]
[380994543,1755930692365,-1114.49,0.0001452,2]
[380994544,1755930692381,-716.98,0.0001452,2]
[380994545,1755930692397,-400.0,0.0001452,2]
[380994546,1755930692415,-1209.16,0.0001452,2]
[380994547,1755930692430,-458.89,0.0001452,2]
[380994548,1755930692445,-400.0,0.0001452,2]
[380994549,1755930692461,-400.0,0.0001452,2]
[380994550,1755930692479,-626.95,0.0001452,2]
[380994551,1755930692494,-932.5,0.0001452,2]
[380994552,1755930692511,-893.99,0.0001452,2]
[380994553,1755930692527,-400.0,0.0001452,2]
[380994554,1755930692542,-640.9,0.0001452,2]
[380994555,1755930692558,-400.0,0.0001452,2]
[380994556,1755930692573,-1077.14,0.0001452,2]
[380994557,1755930692588,-400.0,0.0001452,2]
[380994558,1755930692603,-400.0,0.0001452,2]
[380994559,1755930692620,-1129.31,0.0001452,2]
[380994560,1755930692636,-897.5,0.0001452,2]
[380994561,1755930692651,-928.82,0.0001452,2]
[380994562,1755930692667,-985.74,0.0001452,2]
[380994563,1755930692682,-584.91,0.0001452,2]
[380994564,1755930692698,-404.2199333,0.0001452,2]
[380994565,1755930692713,-1594.64,0.0001452,2]
[380994566,1755930692728,-672.3,0.0001452,2]
[380994567,1755930692743,-400.0,0.0001452,2]
[380994568,1755930692757,-681.69,0.0001452,2]
[380994569,1755930692772,-486.38,0.0001452,2]
[380994570,1755930692787,-482.01,0.0001452,2]
[380994571,1755930692802,-801.05,0.0001452,2]
[380994572,1755930692817,-705.27,0.0001452,2]
[380994573,1755930692834,-649.64,0.0001452,2]
[380994574,1755930693128,-611.51,0.0001452,2]
[380994575,1755930693152,-504.22,0.0001452,2]
[380994576,1755930693163,-475.16,0.0001452,2]
[380994577,1755930693173,-402.80820599,0.0001452,2]
[380994578,1755930693183,-400.0,0.0001452,2]
[380994579,1755930693192,-810.53,0.0001452,2]
[380994580,1755930693201,-753.61,0.0001452,2]
[380994581,1755930693211,-400.0,0.0001452,2]
[380994582,1755930693220,-400.0,0.0001452,2]
[380994583,1755930693230,-667.17,0.0001452,2]
[380994584,1755930693239,-2291.05,0.0001452,2]
[380994585,1755930693249,-446.02,0.0001452,2]
[380994586,1755930693258,-508.92,0.0001452,2]
[380994587,1755930693268,-1407.45,0.0001452,2]
[380994588,1755930693282,-400.0,0.0001452,2]
[380994589,1755930693292,-616.47,0.0001452,2]
[380994590,1755930693303,-696.36,0.0001452,2]
[380994591,1755930693314,-400.0,0.0001452,2]
[380994592,1755930693332,-881.54,0.0001452,2]
[380994593,1755930693342,-855.52,0.0001452,2]
[380994594,1755930693352,-400.0,0.0001452,2]
[380994595,1755930693363,-402.39082065,0.0001452,2]
[380994596,1755930693373,-1014.43,0.0001452,2]
[380994597,1755930693382,-400.0,0.0001452,2]
[380994598,1755930693392,-400.0,0.0001452,2]
[380994599,1755930693402,-1284.58,0.0001452,2]
[380994600,1755930693415,-866.11,0.0001452,2]
[380994601,1755930693425,-440.11,0.0001452,2]
[380994602,1755930693435,-729.3,0.0001452,2]
[380994603,1755930693446,-400.0,0.0001452,2]
[380994604,1755930693456,-477.59,0.0001452,2]
[380994605,1755930693466,-400.0,0.0001452,2]
[380994606,1755930693476,-400.0,0.0001452,2]
[380994607,1755930693485,-520.35,0.0001452,2]
[380994608,1755930693496,-1238.33,0.0001452,2]
[380994609,1755930693506,-656.46,0.0001452,2]
[380994610,1755930693516,-772.76,0.0001452,2]
[380994611,1755930693527,-400.0,0.0001452,2]
[380994612,1755930693537,-400.0,0.0001452,2]
[380994613,1755930693548,-400.0,0.0001452,2]
[380994614,1755930693559,-400.0,0.0001452,2]
[380994615,1755930693570,-892.57,0.0001452,2]
[380994616,1755930693580,-400.0,0.0001452,2]
[380994617,1755930693590,-400.0,0.0001452,2]
[380994618,1755930693600,-600.2,0.0001452,2]
[380994619,1755930693609,-400.0,0.0001452,2]
[380994620,1755930693619,-602.88,0.0001452,2]
[380994621,1755930693628,-590.02,0.0001452,2]
[380994622,1755930693639,-1076.13,0.0001452,2]
[380994623,1755930693650,-736.8,0.0001452,2]
[380994624,1755930693662,-400.0,0.0001452,2]
[380994625,1755930693672,-400.0,0.0001452,2]
[380994626,1755930693683,-1141.99,0.0001452,2]
[380994627,1755930693693,-400.0,0.0001452,2]
[380994628,1755930693704,-451.08,0.0001452,2]
[380994629,1755930693714,-562.1,0.0001452,2]
[380994630,1755930693725,-400.0,0.0001452,2]
[380994631,1755930693734,-573.5,0.0001452,2]
[380994632,1755930693744,-821.55,0.0001452,2]
[380994633,1755930693755,-1096.32,0.0001452,2]
[380994634,1755930693764,-463.18,0.0001452,2]
[380994635,1755930693774,-624.58,0.0001452,2]
[380994636,1755930693784,-1352.51,0.0001452,2]
[380994637,1755930693794,-400.0,0.0001452,2]
[380994638,1755930693804,-1117.58,0.0001452,2]
[380994639,1755930693813,-1337.58,0.0001452,2]
[380994640,1755930693823,-1340.25,0.0001452,2]
[380994641,1755930693832,-930.86,0.0001452,2]
[380994642,1755930693842,-491.34,0.0001452,2]
[380994643,1755930693852,-400.0,0.0001452,2]
[380994644,1755930693862,-546.89,0.0001452,2]
[380994645,1755930693871,-871.98,0.0001452,2]
[380994646,1755930693881,-734.61,0.0001452,2]
[380994647,1755930693891,-1287.92,0.0001452,2]
[380994648,1755930693901,-1082.98,0.0001452,2]
[380994649,1755930693913,-944.89,0.0001452,2]
[380994650,1755930693922,-400.0,0.0001452,2]
[380994651,1755930693933,-802.48,0.0001452,2]
[380994652,1755930693942,-400.0,0.0001452,2]
[380994653,1755930693953,-493.59,0.0001452,2]
[380994654,1755930693964,-411.6,0.0001452,2]
[380994655,1755930693974,-400.0,0.0001452,2]
[380994656,1755930693984,-794.21,0.0001452,2]
[380994657,1755930693994,-548.11,0.0001452,2]
[380994658,1755930694004,-445.1,0.0001452,2]
[380994659,1755930694013,-581.6,0.0001452,2]
[380994660,1755930694023,-1006.63,0.0001452,2]
[380994661,1755930694034,-1523.05,0.0001452,2]
[380994662,1755930694044,-400.0,0.0001452,2]
[380994663,1755930694054,-454.19,0.0001452,2]
[380994664,1755930694064,-567.41,0.0001452,2]
[380994665,1755930694073,-540.12,0.0001452,2]
[380994666,1755930694082,-541.18,0.0001452,2]
[380994667,1755930694093,-1038.57,0.0001452,2]
[380994668,1755930694102,-760.57,0.0001452,2]
[380994669,1755930694111,-1120.03,0.0001452,2]
[380994670,1755930694121,-400.0,0.0001452,2]
[380994671,1755930694131,-400.0,0.0001452,2]
[380994672,1755930694140,-1113.52,0.0001452,2]
[380994673,1755930694150,-584.57,0.0001452,2]
[380994674,1755930694160,-400.0,0.0001452,2]
[380994675,1755930694170,-684.51,0.0001452,2]
[380994676,1755930694180,-904.27,0.0001452,2]
[380994677,1755930694190,-660.57,0.0001452,2]
[380994678,1755930694200,-1031.27,0.0001452,2]
[380994679,1755930694209,-871.26,0.0001452,2]
[380994680,1755930694219,-923.07,0.0001452,2]
[380994681,1755930694228,-986.27,0.0001452,2]
[380994682,1755930694238,-1872.47,0.0001452,2]
[380994683,1755930694247,-1016.95,0.0001452,2]
[380994684,1755930694256,-768.72,0.0001452,2]
[380994685,1755930694266,-994.88,0.0001452,2]
[380994686,1755930694276,-400.0,0.0001452,2]
[380994687,1755930694290,-1031.23,0.0001452,2]
[380994688,1755930694300,-571.58,0.0001452,2]
[380994689,1755930694310,-400.0,0.0001452,2]
[380994690,1755930694323,-647.53,0.0001452,2]
[380994691,1755930694333,-775.88,0.0001452,2]
[380994692,1755930694344,-400.0,0.0001452,2]
[380994693,1755930694355,-400.0,0.0001452,2]
[380994694,1755930694365,-605.11,0.0001452,2]
[380994695,1755930694375,-908.13,0.0001452,2]
[380994696,1755930694384,-639.89,0.0001452,2]
[380994697,1755930694394,-405.51,0.0001452,2]
[380994698,1755930694403,-402.71,0.0001452,2]
[380994699,1755930694414,-999.76,0.0001452,2]
[380994700,1755930694430,-400.0,0.0001452,2]
[380994701,1755930694449,-968.0,0.0001452,2]
[380994702,1755930694458,-834.9,0.0001452,2]
[380994703,1755930694468,-1449.64,0.0001452,2]
[380994704,1755930694477,-838.11,0.0001452,2]
[380994705,1755930694486,-400.0,0.0001452,2]
[380994706,1755930694495,-873.94,0.0001452,2]
[380994707,1755930694506,-764.67,0.0001452,2]
[380994708,1755930694515,-400.0,0.0001452,2]
[380994709,1755930694526,-747.31,0.0001452,2]
[380994710,1755930694535,-839.44,0.0001452,2]
[380994711,1755930694545,-402.87,0.0001452,2]
[380994712,1755930694555,-400.0,0.0001452,2]
[380994713,1755930694564,-400.0,0.0001452,2]
[380994714,1755930694574,-400.0,0.0001452,2]
[380994715,1755930694583,-496.75,0.0001452,2]
[380994716,1755930694593,-514.65,0.0001452,2]
[380994717,1755930694603,-2296.87,0.0001452,2]
[380994718,1755930694612,-264.37731192,0.0001452,2]
[380994719,1755930694622,-400.0,0.0001452,2]
[380994720,1755930694631,-400.0,0.0001452,2]
[380994721,1755930694641,-1231.43,0.0001452,2]
[380994722,1755930694650,-400.0,0.0001452,2]
[380994723,1755930694661,-1067.81,0.0001452,2]
[380994724,1755930694670,-1143.89,0.0001452,2]
[380994725,1755930694680,-400.0,0.0001452,2]
[380994726,1755930694690,-400.0,0.0001452,2]
[380994727,1755930694699,-1043.98,0.0001452,2]
[380994728,1755930694709,-621.01,0.0001452,2]
[380994729,1755930694718,-1047.41,0.0001452,2]
[380994730,1755930694728,-521.91710554,0.0001452,2]
[380994731,1755930694738,-688.55,0.0001452,2]
[380994732,1755930694748,-2024.11,0.0001452,2]
[380994733,1755930694757,-400.0,0.0001452,2]
[380994734,1755930694767,-400.0,0.0001452,2]
[380994735,1755930694777,-471.83,0.0001452,2]
[380994736,1755930694787,-702.78,0.0001452,2]
[380994737,1755930694797,-1569.0,0.0001452,2]
[380994738,1755930694807,-400.0,0.0001452,2]
[380994739,1755930694817,-1557.8,0.0001452,2]
[380994740,1755930694827,-562.49,0.0001452,2]
[380994741,1755930694838,-400.0,0.0001452,2]
[380994742,1755930694847,-1015.96,0.0001452,2]
[380994743,1755930694857,-704.74,0.0001452,2]
[380994744,1755930694866,-415.83,0.0001452,2]
[380994745,1755930694876,-1619.12,0.0001452,2]
[380994746,1755930694886,-873.77,0.0001452,2]
[380994747,1755930694896,-603.17,0.0001452,2]
[380994748,1755930694906,-1020.89,0.0001452,2]
[380994749,1755930694918,-718.17,0.0001452,2]
[380994750,1755930694928,-1397.26,0.0001452,2]
[380994751,1755930694938,-779.46,0.0001452,2]
[380994752,1755930694948,-659.51,0.0001452,2]
[380994753,1755930694957,-400.0,0.0001452,2]
[380994754,1755930694967,-796.66,0.0001452,2]
[380994755,1755930694978,-873.13,0.0001452,2]
[380994756,1755930694987,-1242.26,0.0001452,2]
[380994757,1755930694997,-400.0,0.0001452,2]
[380994758,1755930695007,-535.86,0.0001452,2]
[380994759,1755930695018,-400.0,0.0001452,2]
[380994760,1755930695028,-607.83,0.0001452,2]
[380994761,1755930695038,-400.0,0.0001452,2]
[380994762,1755930695048,-400.0,0.0001452,2]
[380994763,1755930695058,-400.0,0.0001452,2]
[380994764,1755930695068,-400.0,0.0001452,2]
[380994765,1755930695078,-734.36,0.0001452,2]
[380994766,1755930695088,-643.58,0.0001452,2]
[380994767,1755930695097,-593.25,0.0001452,2]
[380994768,1755930695106,-590.01,0.0001452,2]
[380994769,1755930695115,-1009.14,0.0001452,2]
[380994770,1755930695124,-566.68,0.0001452,2]
[380994771,1755930695133,-686.64,0.0001452,2]
[380994772,1755930695148,-821.45,0.0001452,2]
[380994773,1755930695158,-1020.13,0.0001452,2]
[380994774,1755930695170,-739.95,0.0001452,2]
[380994775,1755930695180,-752.12,0.0001452,2]
[380994776,1755930695190,-303.45,0.0001452,2]
[380994777,1755930695200,-567.76,0.0001452,2]
[380994778,1755930695210,-1008.59,0.0001452,2]
[380994779,1755930695220,-749.2,0.0001452,2]
[380994780,1755930695230,-782.78,0.0001452,2]
[380994781,1755930695240,-761.24,0.0001452,2]
[380994782,1755930695250,-676.25,0.0001452,2]
[380994783,1755930695260,-1360.81,0.0001452,2]
[380994784,1755930695270,-512.32,0.0001452,2]
[380994785,1755930695281,-696.26,0.0001452,2]
[380994786,1755930695292,-400.0,0.0001452,2]
[380994787,1755930695302,-1871.16,0.0001452,2]
[380994788,1755930695312,-408.99,0.0001452,2]
[380994789,1755930695322,-638.4,0.0001452,2]
[380994790,1755930695332,-491.72,0.0001452,2]
[380994791,1755930695342,-400.0,0.0001452,2]
[380994792,1755930695352,-485.29572051,0.0001452,2]
[380994793,1755930695363,-633.69,0.0001452,2]
[380994794,1755930695373,-400.0,0.0001452,2]
[380994795,1755930695383,-1307.02,0.0001452,2]
[380994796,1755930695392,-515.86,0.0001452,2]
[380994797,1755930695402,-459.89,0.0001452,2]
[380994798,1755930695412,-807.4,0.0001452,2]
[380994799,1755930695422,-553.1,0.0001452,2]
[380994800,1755930695431,-718.67,0.0001452,2]
[380994801,1755930695441,-620.72,0.0001452,2]
[380994802,1755930695451,-928.31,0.0001452,2]
[380994803,1755930695461,-1259.98,0.0001452,2]
[380994804,1755930695471,-2900.39,0.0001452,2]
[380994805,1755930695481,-405.54,0.0001452,2]
[380994806,1755930695492,-591.71,0.0001452,2]
[380994807,1755930695502,-494.42,0.0001452,2]
[380994808,1755930695511,-400.0,0.0001452,2]
[380994809,1755930695521,-992.94,0.0001452,2]
[380994810,1755930695530,-400.0,0.0001452,2]